bitfinex/quotes_BTCUSD_20240906
["timestamp","ask_amount","ask_price","bid_price","bid_amount"]
[1725592194868,0.530557,56846.0,56845.0,0.19804]
[1725592195298,0.530557,56846.0,56845.0,0.22410304]
[1725592195523,0.530557,56846.0,56845.0,0.23410304]
[1725592196426,0.725836,56846.0,56845.0,0.23410304]
[1725592197334,0.530557,56846.0,56845.0,0.23410304]
[1725592198231,0.722336,56846.0,56845.0,0.23410304]
[1725592198438,0.69183,56846.0,56845.0,0.23410304]
[1725592199086,0.530557,56846.0,56845.0,0.23410304]
[1725592200806,0.530557,56846.0,56845.0,0.76185204]
[1725592200807,0.002817,56846.0,56845.0,0.76185204]
[1725592201020,0.002817,56846.0,56845.0,1.11368504]
[1725592201261,0.37096474,56857.0,56856.0,0.732347]
[1725592201262,0.01920474,56857.0,56856.0,0.732347]
[1725592201506,0.01920474,56857.0,56856.0,1.435877]
[1725592201744,0.000816,56857.0,56856.0,1.46258923]
[1725592201988,0.000816,56857.0,56856.0,1.96008434]
[1725592202432,0.000816,56861.0,56856.0,1.96008434]
[1725592202433,0.000816,56861.0,56860.0,1.435793]
[1725592202876,0.000816,56861.0,56860.0,1.46658236]
[1725592203570,0.02756221,56875.0,56874.0,0.205827]
[1725592203779,0.175813,56879.0,56877.0,0.02]
[1725592203994,0.175808,56880.0,56878.0,0.1847]
[1725592204220,0.175808,56880.0,56878.0,0.21541379]
[1725592204472,0.351606,56882.0,56878.0,0.21541379]
[1725592204473,0.175811,56879.0,56878.0,0.21541379]
[1725592204925,0.17581,56880.0,56878.0,0.21541379]
[1725592205136,0.175811,56879.0,56878.0,0.21541379]
[1725592205355,0.351617,56880.0,56878.0,0.21541379]
[1725592205811,0.27202068,56881.0,56878.0,0.21541379]
[1725592206025,0.527434,56879.0,56878.0,0.21541379]
[1725592206253,1.505131,56879.0,56878.0,0.21541379]
[1725592206498,0.922079,56879.0,56878.0,0.21541379]
[1725592206714,1.273702,56879.0,56878.0,0.21541379]
[1725592207779,1.278702,56879.0,56878.0,0.1847]
[1725592207988,1.278702,56879.0,56878.0,0.2154083]
[1725592208208,1.630325,56879.0,56878.0,0.0307083]
[1725592208441,2.175048,56879.0,56878.0,0.0307083]
[1725592208653,0.879165,56872.0,56871.0,0.01]
[1725592208882,1.543681,56872.0,56871.0,0.01]
[1725592209122,0.175839,56870.0,56869.0,0.01]
[1725592209380,0.527527,56869.0,56868.0,0.0794]
[1725592209627,0.879275,56865.0,56864.0,0.01]
[1725592209847,0.175858,56864.0,56863.0,0.0784]
[1725592210063,1.98345,56864.0,56863.0,0.0884]
[1725592210279,2.19615,56864.0,56863.0,0.0884]
[1725592210919,2.19615,56864.0,56863.0,0.01]
[1725592211134,0.527583,56863.0,56862.0,0.01]
[1725592211357,2.119034,56863.0,56862.0,0.01]
[1725592211568,1.804038,56863.0,56862.0,0.01]
[1725592211777,1.763658,56863.0,56862.0,0.01]
[1725592212236,1.604379,56863.0,56862.0,0.01]
[1725592212657,1.604379,56863.0,56862.0,0.014]
[1725592213403,1.605379,56863.0,56862.0,0.016]
[1725592214935,1.957101,56863.0,56862.0,0.016]
[1725592215675,1.97445366,56863.0,56862.0,0.016]
[1725592216327,1.97445366,56863.0,56862.0,0.006]
[1725592217523,1.578703,56863.0,56862.0,0.016]
[1725592219616,0.880305,56863.0,56862.0,0.016]
[1725592219807,0.528583,56863.0,56862.0,0.1856]
[1725592220267,0.528583,56863.0,56862.0,0.21634433]
[1725592220740,0.758466,56863.0,56862.0,0.21634433]
[1725592220987,1.039688,56863.0,56862.0,0.21634433]
[1725592224266,0.880305,56863.0,56862.0,0.21634433]
[1725592224535,0.528583,56863.0,56862.0,0.21634433]
[1725592224792,0.176861,56863.0,56862.0,0.21634433]
[1725592225019,0.528583,56863.0,56862.0,0.21634433]
[1725592225941,0.758466,56863.0,56862.0,0.21797633]
[1725592228033,0.687966,56863.0,56862.0,0.21797633]
[1725592228243,0.528583,56863.0,56862.0,0.21797633]
[1725592229722,0.687966,56863.0,56862.0,0.21797633]
[1725592231762,0.687966,56863.0,56862.0,0.22742508]
[1725592234500,0.81100453,56863.0,56862.0,0.22742508]
[1725592234729,0.98686553,56863.0,56862.0,0.13622508]
[1725592234954,0.98686553,56863.0,56862.0,0.096032]
[1725592235892,0.98686553,56863.0,56862.0,0.13622405]
[1725592236614,1.68984553,56863.0,56862.0,0.13622405]
[1725592236841,1.68984553,56863.0,56862.0,0.096032]
[1725592237998,1.40416153,56863.0,56862.0,0.096032]
[1725592241050,0.000816,56865.0,56864.0,0.01]
[1725592241292,0.276671,56865.0,56864.0,0.0846]
[1725592241574,0.276671,56865.0,56864.0,0.12478641]
[1725592242485,0.276671,56865.0,56864.0,0.12678641]
[1725592242721,0.276671,56865.0,56864.0,0.12878641]
[1725592242968,0.000816,56865.0,56864.0,0.14878641]
[1725592243212,0.000816,56865.0,56864.0,0.67636041]
[1725592243466,0.000816,56865.0,56864.0,0.14878641]
[1725592244876,0.000816,56865.0,56864.0,1.12437641]
[1725592246059,0.000816,56865.0,56864.0,1.47609241]
[1725592246289,0.000816,56865.0,56864.0,1.12437641]
[1725592250809,0.351654,56874.0,56867.0,0.175848]
[1725592251027,1.771238,56873.0,56871.0,0.01]
[1725592251247,0.351672,56872.0,56871.0,0.01]
[1725592251486,0.527505,56872.0,56871.0,0.01]
[1725592252409,0.527505,56872.0,56871.0,0.011]
[1725592252638,0.527505,56872.0,56871.0,0.01]
[1725592253100,0.533505,56872.0,56871.0,0.01]
[1725592253543,0.175839,56871.0,56870.0,0.02]
[1725592253981,0.527512,56871.0,56870.0,0.02]
[1725592254878,1.897395,56871.0,56870.0,0.021]
[1725592255322,1.901395,56871.0,56870.0,0.021]
[1725592257391,1.549722,56871.0,56870.0,0.031]
[1725592257593,0.536512,56871.0,56870.0,0.1063]
[1725592258002,0.888185,56871.0,56870.0,0.14644714]
[1725592258245,0.536512,56871.0,56870.0,0.14644714]
[1725592261681,0.537328,56871.0,56870.0,0.14644714]
[1725592261890,0.000816,56871.0,56870.0,0.14644714]
[1725592262117,1.040521,56871.0,56870.0,0.14644714]
[1725592262344,1.040521,56871.0,56870.0,0.031]
[1725592263438,0.688848,56871.0,56870.0,0.031]
[1725592263682,0.688848,56871.0,56870.0,0.548379]
[1725592263683,0.000816,56871.0,56870.0,0.548379]
[1725592263926,0.000816,56871.0,56870.0,1.075897]
[1725592264169,0.000816,56871.0,56870.0,1.11604365]
[1725592265062,0.000816,56871.0,56870.0,1.46672265]
[1725592265308,0.001816,56871.0,56870.0,1.47472265]
[1725592265783,0.001816,56871.0,56870.0,1.12304365]
[1725592266005,0.002816,56871.0,56870.0,1.12904365]
[1725592266238,0.002816,56871.0,56870.0,1.48072265]
[1725592266500,0.000816,56880.0,56879.0,1.42638]
[1725592266728,0.000816,56880.0,56879.0,2.41222634]
[1725592267433,0.000816,56880.0,56879.0,2.41422634]
[1725592267922,0.001816,56880.0,56879.0,2.42722634]
[1725592268140,0.000816,56880.0,56879.0,2.41422634]
[1725592268583,0.001816,56880.0,56879.0,1.97797613]
[1725592269021,0.000816,56880.0,56879.0,2.06060334]
[1725592269248,0.001816,56880.0,56879.0,2.07460334]
[1725592269474,0.002816,56880.0,56879.0,2.08060334]
[1725592269961,0.001816,56880.0,56879.0,2.07460334]
[1725592270233,0.001816,56880.0,56879.0,1.97797613]
[1725592270707,0.000816,56880.0,56879.0,1.96397613]
[1725592270937,0.002816,56880.0,56879.0,1.98797613]
[1725592271208,0.002816,56880.0,56879.0,1.27073013]
[1725592271432,0.001816,56880.0,56879.0,1.26073013]
[1725592271656,0.001816,56880.0,56879.0,1.27473013]
[1725592271908,0.000816,56880.0,56879.0,0.73329613]
[1725592272160,0.000816,56880.0,56879.0,0.24980102]
[1725592272395,0.000816,56880.0,56879.0,0.15940102]
[1725592272623,0.000816,56880.0,56879.0,0.25991202]
[1725592272830,0.001816,56880.0,56879.0,0.26891202]
[1725592273330,0.000816,56880.0,56879.0,0.25991202]
[1725592273563,0.001816,56880.0,56879.0,0.26891202]
[1725592273829,0.001816,56880.0,56879.0,0.09310102]
[1725592276133,0.177624,56880.0,56879.0,0.09310102]
[1725592277020,0.529241,56880.0,56879.0,0.09310102]
[1725592277254,0.177624,56880.0,56879.0,0.09310102]
[1725592277482,0.880858,56880.0,56879.0,0.06310102]
[1725592277728,1.424175,56880.0,56879.0,0.06310102]
[1725592277955,1.424175,56880.0,56879.0,0.023]
[1725592277956,1.87864927,56880.0,56879.0,0.023]
[1725592278198,3.46390827,56880.0,56879.0,0.023]
[1725592278443,3.46390827,56880.0,56879.0,0.009]
[1725592278908,2.28985,56880.0,56879.0,0.005]
[1725592279131,1.23068,56879.0,56878.0,0.01]
[1725592279350,1.778217,56879.0,56878.0,0.01]
[1725592280020,0.175824,56875.0,56874.0,0.01]
[1725592280247,1.869613,56875.0,56874.0,0.01]
[1725592280528,1.705983,56875.0,56874.0,0.01]
[1725592281849,1.710983,56875.0,56874.0,0.01]
[1725592282067,1.705983,56875.0,56874.0,0.01]
[1725592282283,1.709983,56875.0,56874.0,0.01]
[1725592282492,1.711983,56875.0,56874.0,0.01]
[1725592283208,1.7355458,56875.0,56874.0,0.01]
[1725592283644,1.7365458,56875.0,56874.0,0.01]
[1725592283866,1.6994458,56875.0,56874.0,0.01]
[1725592284570,0.9104988,56875.0,56874.0,0.01]
[1725592284797,1.6968438,56875.0,56874.0,0.01]
[1725592285010,1.6978438,56875.0,56874.0,0.01]
[1725592285235,1.6197738,56875.0,56874.0,0.01]
[1725592285461,1.6207738,56875.0,56874.0,0.01]
[1725592285920,1.4598578,56875.0,56874.0,0.01]
[1725592286169,1.1112098,56875.0,56874.0,0.01]
[1725592286385,0.8799158,56875.0,56874.0,0.01]
[1725592286902,0.8789158,56875.0,56874.0,0.01]
[1725592287156,0.8799158,56875.0,56874.0,0.01]
[1725592287382,0.8779158,56875.0,56874.0,0.01]
[1725592287826,0.8799158,56875.0,56874.0,0.01]
[1725592288487,0.8799158,56875.0,56874.0,0.04173492]
[1725592288710,0.8799158,56875.0,56874.0,0.01]
[1725592288924,0.852353,56875.0,56874.0,0.04173492]
[1725592289159,0.852353,56875.0,56874.0,0.01]
[1725592289377,0.852353,56875.0,56874.0,0.04173492]
[1725592289597,0.852353,56875.0,56874.0,0.01]
[1725592289812,0.852353,56875.0,56874.0,0.04173492]
[1725592290030,0.852353,56875.0,56874.0,0.01]
[1725592290215,0.852353,56875.0,56874.0,0.04173492]
[1725592290484,0.852353,56875.0,56874.0,0.01]
[1725592290715,0.852353,56875.0,56874.0,0.04173492]
[1725592290939,0.852353,56875.0,56874.0,0.01]
[1725592291156,0.852353,56875.0,56874.0,0.04173492]
[1725592291381,1.204001,56875.0,56874.0,0.01]
[1725592291609,1.204001,56875.0,56874.0,0.04173492]
[1725592291827,1.203001,56875.0,56874.0,0.01]
[1725592292088,1.203001,56875.0,56874.0,0.04173492]
[1725592292089,1.23156387,56875.0,56874.0,0.04173492]
[1725592292302,1.23156387,56875.0,56874.0,0.01]
[1725592292523,1.23156387,56875.0,56874.0,0.04173399]
[1725592292524,1.22956387,56875.0,56874.0,0.04173399]
[1725592292741,1.22856387,56875.0,56874.0,0.01]
[1725592292960,1.22856387,56875.0,56874.0,0.04473399]
[1725592293235,0.87691587,56875.0,56874.0,0.013]
[1725592293463,0.87691587,56875.0,56874.0,0.04473399]
[1725592293681,0.87691587,56875.0,56874.0,0.013]
[1725592293900,0.87891587,56875.0,56874.0,0.04473399]
[1725592294118,0.87891587,56875.0,56874.0,0.013]
[1725592294119,0.37713487,56875.0,56874.0,0.013]
[1725592294372,0.02837887,56875.0,56874.0,0.12945323]
[1725592294603,0.02837887,56875.0,56874.0,0.725881]
[1725592294861,0.02837887,56875.0,56874.0,0.75763423]
[1725592296746,0.02837887,56875.0,56874.0,1.11987264]
[1725592296963,0.000816,56875.0,56874.0,1.46952664]
[1725592297880,0.000816,56875.0,56874.0,1.47252664]
[1725592298133,0.000816,56875.0,56874.0,1.46952664]
[1725592298366,0.000816,56875.0,56874.0,1.48052664]
[1725592298587,0.001816,56875.0,56874.0,1.48452664]
[1725592299281,0.001816,56875.0,56874.0,1.48052664]
[1725592299498,0.002816,56875.0,56874.0,1.49152664]
[1725592300024,0.000816,56875.0,56874.0,1.46652664]
[1725592300468,0.000816,56875.0,56874.0,1.48052664]
[1725592300691,0.000816,56875.0,56874.0,1.46652664]
[1725592301148,0.000816,56875.0,56874.0,1.48052664]
[1725592301582,0.001816,56875.0,56874.0,1.49152664]
[1725592320346,0.001816,56875.0,56874.0,0.09733764]
[1725592320572,2.621955,56875.0,56874.0,0.06733764]
[1725592320800,0.799388,56875.0,56874.0,0.0633109]
[1725592321041,1.142751,56875.0,56874.0,0.035]
[1725592321596,1.142751,56875.0,56874.0,0.01]
[1725592321597,1.141751,56875.0,56874.0,0.01]
[1725592321811,1.142751,56875.0,56874.0,0.027]
[1725592322038,1.07019834,56875.0,56874.0,0.027]
[1725592322283,1.19436034,56875.0,56874.0,0.018]
[1725592322959,1.19436034,56875.0,56874.0,0.01]
[1725592323208,1.19436034,56875.0,56874.0,0.012]
[1725592323424,1.19436034,56875.0,56874.0,0.01]
[1725592323847,0.94682034,56875.0,56874.0,0.013]
[1725592324340,0.77099634,56875.0,56874.0,0.01]
[1725592324792,0.29518634,56875.0,56874.0,0.01]
[1725592325019,0.34990562,56876.0,56874.0,0.03832108]
[1725592325291,0.000816,56880.0,56874.0,0.03832108]
[1725592325292,0.02756261,56879.0,56874.0,0.02]
[1725592325515,0.02756261,56879.0,56878.0,0.557443]
[1725592325739,0.02756261,56879.0,56878.0,0.985072]
[1725592325957,0.000816,56880.0,56879.0,0.537434]
[1725592326403,0.000816,56880.0,56879.0,0.917361]
[1725592326652,0.000816,56880.0,56879.0,0.931361]
[1725592327143,0.000816,56880.0,56879.0,0.925361]
[1725592327785,0.006816,56880.0,56879.0,0.924361]
[1725592328042,0.000816,56880.0,56879.0,0.923361]
[1725592328726,0.005816,56880.0,56879.0,0.923361]
[1725592329243,0.000816,56880.0,56879.0,0.923361]
[1725592329468,0.001816,56880.0,56879.0,0.923361]
[1725592330008,0.001816,56880.0,56879.0,0.935361]
[1725592330625,0.000816,56880.0,56879.0,0.935361]
[1725592331039,0.001816,56880.0,56879.0,0.947361]
[1725592332114,0.001816,56880.0,56879.0,1.298984]
[1725592334338,0.001816,56880.0,56879.0,1.816107]
[1725592334541,0.001816,56880.0,56879.0,2.31360211]
[1725592334931,0.001816,56880.0,56879.0,1.816107]
[1725592335141,0.001816,56880.0,56879.0,2.19273]
[1725592335371,0.001816,56880.0,56879.0,2.19073]
[1725592335589,0.001816,56880.0,56879.0,2.20811605]
[1725592336949,0.001816,56880.0,56879.0,2.19073]
[1725592340881,0.001816,56880.0,56879.0,2.68822511]
[1725592344661,0.001816,56880.0,56879.0,2.68985711]
[1725592345831,0.001816,56880.0,56879.0,2.69185711]
[1725592346049,0.001816,56880.0,56879.0,2.68985711]
[1725592349626,0.001816,56880.0,56879.0,2.31523411]
[1725592350499,0.001816,56880.0,56879.0,1.96361111]
[1725592352882,0.001816,56880.0,56879.0,2.31523411]
[1725592353099,0.001816,56880.0,56879.0,1.96361111]
[1725592355078,0.0016044,56880.0,56879.0,1.96361111]
[1725592356230,0.351526,56895.0,56887.0,0.351572]
[1725592356441,0.337794,56894.0,56891.0,0.175773]
[1725592356663,0.175766,56894.0,56893.0,0.02]
[1725592357076,0.337794,56894.0,56893.0,0.04823521]
[1725592358204,0.341794,56894.0,56893.0,0.04823521]
[1725592358662,0.179766,56894.0,56893.0,0.04823521]
[1725592359764,0.175766,56894.0,56893.0,0.04823521]
[1725592360009,0.176766,56894.0,56893.0,0.04823521]
[1725592361145,0.528296,56894.0,56893.0,0.04823521]
[1725592361363,0.690324,56894.0,56893.0,0.04823521]
[1725592361573,0.690324,56894.0,56893.0,0.02]
[1725592361785,0.690324,56894.0,56893.0,0.04823748]
[1725592362009,0.690324,56894.0,56893.0,0.03]
[1725592362233,0.690324,56894.0,56893.0,0.03823748]
[1725592362471,1.041854,56894.0,56893.0,0.03823748]
[1725592362699,0.690324,56894.0,56893.0,0.03823748]
[1725592362936,0.690324,56894.0,56893.0,0.01]
[1725592363191,0.690324,56894.0,56889.0,0.175779]
[1725592363192,1.2304,56892.0,56891.0,0.01]
[1725592363415,0.197796,56884.0,56883.0,0.01]
[1725592363672,0.527407,56882.0,56881.0,0.01]
[1725592363920,0.879012,56882.0,56881.0,0.01]
[1725592364138,1.230617,56882.0,56881.0,0.02827128]
[1725592364363,0.879042,56880.0,56879.0,0.001632]
[1725592364582,1.882196,56880.0,56879.0,0.001632]
[1725592365024,1.725062,56880.0,56879.0,0.001632]
[1725592365905,2.098679,56880.0,56879.0,0.001632]
[1725592366120,2.22624033,56880.0,56879.0,0.001632]
[1725592366395,2.22824033,56880.0,56879.0,0.001632]
[1725592366841,2.22824033,56880.0,56879.0,0.006632]
[1725592367477,2.22824033,56880.0,56879.0,0.001632]
[1725592367989,2.22824033,56880.0,56879.0,0.002632]
[1725592368219,2.22824033,56880.0,56879.0,0.001632]
[1725592368445,2.23724033,56880.0,56879.0,0.002632]
[1725592368675,2.23724033,56880.0,56879.0,0.003632]
[1725592368898,2.209679,56880.0,56879.0,0.003632]
[1725592369989,2.200679,56880.0,56879.0,0.002632]
[1725592370238,2.208679,56880.0,56879.0,0.003632]
[1725592370465,2.208679,56880.0,56879.0,0.002632]
[1725592370691,2.200679,56880.0,56879.0,0.001632]
[1725592370920,2.205679,56880.0,56879.0,0.002632]
[1725592371173,2.207679,56880.0,56879.0,0.002632]
[1725592371384,2.216679,56880.0,56879.0,0.003632]
[1725592373182,2.24424359,56880.0,56879.0,0.003632]
[1725592375471,2.29681981,56880.0,56879.0,0.003632]
[1725592376316,2.24424359,56880.0,56879.0,0.003632]
[1725592378727,2.216679,56880.0,56879.0,0.003632]
[1725592378931,2.23506774,56880.0,56879.0,0.003632]
[1725592381621,2.23588374,56880.0,56879.0,0.003632]
[1725592382358,2.26344869,56880.0,56879.0,0.003632]
[1725592383929,2.23544869,56880.0,56879.0,0.003632]
[1725592384147,1.88383169,56880.0,56879.0,0.003632]
[1725592384823,1.03314169,56880.0,56879.0,0.003632]
[1725592385028,0.80971469,56880.0,56879.0,0.099132]
[1725592385238,1.16133169,56880.0,56879.0,0.099132]
[1725592385891,1.15433169,56880.0,56879.0,0.098132]
[1725592386330,1.16033169,56880.0,56879.0,0.12746]
[1725592386536,1.25533169,56880.0,56879.0,0.12646]
[1725592388343,1.03181169,56880.0,56879.0,0.12646]
[1725592388528,1.03181169,56880.0,56879.0,0.098132]
[1725592388840,2.37765774,56880.0,56879.0,0.098132]
[1725592389279,2.34055774,56880.0,56879.0,0.098132]
[1725592389491,2.25543774,56880.0,56879.0,0.098132]
[1725592390189,2.60705474,56880.0,56879.0,0.098132]
[1725592390417,2.60705474,56880.0,56879.0,0.002632]
[1725592390655,2.60905474,56880.0,56879.0,0.002632]
[1725592390868,2.60705474,56880.0,56879.0,0.002632]
[1725592393503,2.63461789,56880.0,56879.0,0.002632]
[1725592394560,2.63661789,56880.0,56879.0,0.002632]
[1725592395209,2.65389375,56880.0,56879.0,0.002632]
[1725592397898,3.00551075,56880.0,56879.0,0.002632]
[1725592398113,3.00351075,56880.0,56879.0,0.002632]
[1725592398328,2.9759476,56880.0,56879.0,0.002632]
[1725592398544,3.00349431,56880.0,56879.0,0.002632]
[1725592399392,1.75230331,56880.0,56879.0,0.002632]
[1725592399814,4.84711231,56880.0,56879.0,0.002632]
[1725592400026,3.98090531,56880.0,56879.0,0.002632]
[1725592402131,4.00846863,56880.0,56879.0,0.002632]
[1725592403756,4.12846042,56880.0,56879.0,0.002632]
[1725592403978,4.05166863,56880.0,56879.0,0.002632]
[1725592404199,4.15684821,56880.0,56879.0,0.002632]
[1725592404413,4.05166863,56880.0,56879.0,0.002632]
[1725592405550,4.1831431,56880.0,56879.0,0.002632]
[1725592406421,4.05166863,56880.0,56879.0,0.002632]
[1725592408677,4.40328563,56880.0,56879.0,0.002632]
[1725592408979,4.37572231,56880.0,56879.0,0.002632]
[1725592409422,4.53382854,56880.0,56879.0,0.002632]
[1725592411385,4.37572231,56880.0,56879.0,0.002632]
[1725592412040,4.37889886,56880.0,56879.0,0.001632]
[1725592412252,4.39189886,56880.0,56879.0,0.002632]
[1725592412481,4.36149886,56880.0,56879.0,0.002632]
[1725592412749,2.13289686,56880.0,56879.0,0.002632]
[1725592412965,6.36454886,56880.0,56879.0,0.001632]
[1725592413176,6.38275686,56880.0,56879.0,0.003632]
[1725592413385,6.2435621,56880.0,56879.0,0.003632]
[1725592413594,6.2305621,56880.0,56879.0,0.002632]
[1725592413826,6.2255621,56880.0,56879.0,0.001632]
[1725592414076,6.2495621,56880.0,56879.0,0.003632]
[1725592416292,6.09135086,56880.0,56879.0,0.003632]
[1725592417401,5.60134286,56880.0,56879.0,0.003632]
[1725592417628,2.83456029,56880.0,56879.0,0.078232]
[1725592417830,2.83456029,56880.0,56879.0,0.176632]
[1725592417831,1.79376929,56880.0,56879.0,0.176632]
[1725592418090,1.78334833,56880.0,56879.0,0.176632]
[1725592418301,2.13496533,56880.0,56879.0,0.176632]
[1725592418504,2.12096533,56880.0,56879.0,0.175632]
[1725592418722,2.09940004,56880.0,56879.0,0.175632]
[1725592418948,2.08940004,56880.0,56879.0,0.174632]
[1725592419169,2.09340004,56880.0,56879.0,0.174632]
[1725592419372,2.08740004,56880.0,56879.0,0.174632]
[1725592419611,2.09240056,56880.0,56879.0,0.174632]
[1725592422148,2.11996361,56880.0,56879.0,0.174632]
[1725592423683,2.99227061,56880.0,56879.0,0.174632]
[1725592424775,2.64066588,56880.0,56879.0,0.174632]
[1725592424991,2.40305988,56880.0,56879.0,0.174632]
[1725592426284,2.40853429,56880.0,56879.0,0.174632]
[1725592428086,0.87386483,56880.0,56879.0,0.174632]
[1725592428610,0.82111005,56880.0,56879.0,0.174632]
[1725592428852,0.793547,56880.0,56879.0,0.20294887]
[1725592429083,0.175806,56881.0,56880.0,0.1729]
[1725592429552,0.527417,56881.0,56880.0,0.20121405]
[1725592429782,0.650515,56881.0,56880.0,0.20121405]
[1725592430243,0.654515,56881.0,56880.0,0.20221405]
[1725592430472,0.004,56881.0,56880.0,0.58383105]
[1725592430711,0.004,56881.0,56880.0,0.75963905]
[1725592430945,0.000816,56882.0,56881.0,0.720316]
[1725592431216,0.000816,56882.0,56881.0,1.066927]
[1725592431445,0.000816,56882.0,56881.0,1.09523508]
[1725592432839,0.000816,56882.0,56881.0,1.10023508]
[1725592433285,0.000816,56882.0,56881.0,1.11023508]
[1725592434180,0.000816,56882.0,56881.0,1.10523508]
[1725592434832,0.001816,56882.0,56881.0,1.11523508]
[1725592435788,0.000816,56882.0,56881.0,1.11523508]
[1725592437359,0.000816,56882.0,56881.0,1.12523508]
[1725592437360,0.001816,56882.0,56881.0,1.12523508]
[1725592440826,0.001816,56882.0,56881.0,0.24120808]
[1725592441311,1.687972,56882.0,56881.0,0.23120808]
[1725592441569,2.552592,56882.0,56881.0,0.04830808]
[1725592441806,2.552592,56882.0,56881.0,0.03]
[1725592441807,2.449594,56882.0,56881.0,0.03]
[1725592442711,2.36294,56882.0,56881.0,0.03]
[1725592442952,2.080857,56882.0,56881.0,0.03]
[1725592443181,1.96329,56882.0,56881.0,0.03]
[1725592444557,1.917207,56882.0,56881.0,0.03]
[1725592444773,1.894115,56882.0,56881.0,0.03]
[1725592445651,1.894115,56882.0,56881.0,0.02]
[1725592445873,1.350011,56882.0,56881.0,0.03]
[1725592446098,1.252423,56882.0,56881.0,0.2048]
[1725592446766,1.252423,56882.0,56881.0,0.23309816]
[1725592447186,0.786799,56882.0,56881.0,0.23309816]
[1725592447421,0.689599,56882.0,56881.0,0.23309816]
[1725592450728,0.177618,56882.0,56881.0,0.23309816]
[1725592450955,0.158298,56882.0,56881.0,0.24309816]
[1725592451190,0.001816,56882.0,56881.0,0.42890316]
[1725592451409,0.162298,56882.0,56881.0,0.42890316]
[1725592451631,0.001816,56882.0,56881.0,0.42890316]
[1725592451864,0.158298,56882.0,56881.0,0.42890316]
[1725592453784,0.001816,56882.0,56881.0,0.42890316]
[1725592454008,0.001816,56882.0,56881.0,0.43053516]
[1725592454224,0.158298,56882.0,56881.0,0.43053516]
[1725592455153,0.001816,56882.0,56881.0,0.43053516]
[1725592458553,0.001816,56882.0,56881.0,0.25473016]
[1725592458758,0.001816,56882.0,56881.0,0.43053516]
[1725592460936,0.001816,56882.0,56881.0,0.25473016]
[1725592461560,0.897431,56882.0,56881.0,0.25473016]
[1725592461779,0.705334,56882.0,56881.0,0.25473016]
[1725592462676,0.541361,56882.0,56881.0,0.25473016]
[1725592462882,0.541361,56882.0,56881.0,0.43053516]
[1725592463098,0.541361,56882.0,56881.0,0.25473016]
[1725592463542,0.541361,56882.0,56881.0,0.78214616]
[1725592463748,0.001816,56882.0,56881.0,0.78214616]
[1725592463984,0.001816,56882.0,56881.0,0.43053516]
[1725592465660,0.705634,56882.0,56881.0,0.43053516]
[1725592466304,0.51456,56882.0,56881.0,0.43053516]
[1725592468724,0.346499,56882.0,56881.0,0.43053516]
[1725592468942,0.306629,56882.0,56881.0,0.43053516]
[1725592473229,0.001816,56882.0,56881.0,0.43053516]
[1725592473448,0.306629,56882.0,56881.0,0.43053516]
[1725592473698,0.236129,56882.0,56881.0,0.43053516]
[1725592475310,0.161127,56882.0,56881.0,0.43053516]
[1725592475561,0.161127,56882.0,56881.0,1.48536816]
[1725592475562,0.001816,56882.0,56881.0,1.48536816]
[1725592475782,0.001816,56882.0,56881.0,1.808681]
[1725592476003,0.001816,56882.0,56881.0,1.48536296]
[1725592476900,0.001816,56882.0,56881.0,1.83697396]
[1725592478446,0.001816,56882.0,56881.0,1.48536296]
[1725592487247,0.351506,56899.0,56881.0,1.48536296]
[1725592487248,0.351506,56899.0,56893.0,0.175767]
[1725592487481,0.836053,56897.0,56895.0,0.1679]
[1725592487712,0.3904,56896.0,56895.0,0.1779]
[1725592488375,0.214641,56896.0,56895.0,0.1779]
[1725592489657,0.214641,56896.0,56895.0,0.353662]
[1725592489920,0.155577,56898.0,56896.0,0.02]
[1725592490147,0.175751,56899.0,56896.0,0.195759]
[1725592490382,0.231785,56898.0,56896.0,0.195759]
[1725592490846,0.154285,56897.0,56896.0,0.205759]
[1725592491056,0.007,56898.0,56896.0,0.206759]
[1725592491272,0.154285,56897.0,56896.0,0.206759]
[1725592492516,0.154285,56897.0,56896.0,0.205759]
[1725592493021,0.154285,56897.0,56896.0,0.557277]
[1725592493685,0.157285,56897.0,56896.0,0.557277]
[1725592495345,0.157285,56897.0,56896.0,0.205759]
[1725592497483,0.157285,56897.0,56896.0,0.03]
[1725592499721,0.157285,56897.0,56896.0,0.205759]
[1725592499935,0.003,56897.0,56896.0,1.428513]
[1725592500606,0.003,56897.0,56896.0,1.780031]
[1725592500828,0.000816,56898.0,56897.0,1.07698]
[1725592501075,0.000816,56898.0,56897.0,1.451492]
[1725592501294,0.000816,56898.0,56897.0,1.803004]
[1725592502025,0.000816,56898.0,56897.0,0.725468]
[1725592502239,0.000816,56898.0,56897.0,1.07698]
[1725592502471,0.000816,56898.0,56897.0,0.75368106]
[1725592503305,0.001816,56898.0,56897.0,0.41616906]
[1725592503571,0.001816,56898.0,56897.0,0.78168106]
[1725592504025,0.001816,56898.0,56897.0,0.76768106]
[1725592504276,0.001816,56898.0,56897.0,0.78168106]
[1725592504487,0.001816,56898.0,56897.0,0.76768106]
[1725592504706,0.001816,56898.0,56897.0,1.11919306]
[1725592504932,0.001816,56898.0,56897.0,1.48270506]
[1725592505152,0.001816,56898.0,56897.0,1.47070506]
[1725592505343,0.000816,56898.0,56897.0,1.46870506]
[1725592505827,0.001816,56898.0,56897.0,1.48170506]
[1725592506246,0.000816,56898.0,56897.0,1.46870506]
[1725592507107,0.001816,56898.0,56897.0,1.48070506]
[1725592507525,0.001816,56898.0,56897.0,1.12919306]
[1725592511377,0.29071439,56905.0,56903.0,0.02]
[1725592511587,0.568646,56904.0,56903.0,0.02]
[1725592512068,0.392911,56904.0,56903.0,0.02]
[1725592512514,0.487004,56905.0,56903.0,0.025]
[1725592513177,0.51455359,56905.0,56903.0,0.02]